bitfinex/quotes_BTCUSD_20241010
["timestamp","ask_amount","ask_price","bid_price","bid_amount"]
[1728570835745,0.002636,60726.0,60725.0,0.63364764]
[1728570835964,0.001636,60726.0,60725.0,0.65619009]
[1728570836236,0.24637217,60741.0,60740.0,0.358236]
[1728570836448,0.24637217,60741.0,60740.0,0.70697489]
[1728570836908,0.24637217,60748.0,60747.0,0.164617]
[1728570837346,0.001636,60750.0,60749.0,0.164611]
[1728570837818,0.001636,60750.0,60749.0,0.23278682]
[1728570838048,0.001636,60750.0,60747.0,0.493847]
[1728570838268,0.001636,60750.0,60749.0,0.164611]
[1728570840190,0.001636,60750.0,60749.0,0.51534864]
[1728570840395,0.003636,60750.0,60749.0,0.51734864]
[1728570840626,0.003636,60750.0,60749.0,0.51534864]
[1728570840902,0.003636,60750.0,60749.0,0.49234864]
[1728570841102,0.004636,60750.0,60749.0,0.0795]
[1728570841325,0.002636,60750.0,60749.0,0.001]
[1728570841537,0.003636,60750.0,60749.0,0.004]
[1728570841779,0.002636,60750.0,60749.0,0.001]
[1728570842032,0.001636,60750.0,60741.0,0.329263]
[1728570842288,0.001636,60750.0,60749.0,0.003]
[1728570842289,0.167245,60750.0,60749.0,0.003]
[1728570842540,0.57435091,60750.0,60749.0,0.004]
[1728570842732,0.65305091,60750.0,60749.0,0.004]
[1728570842946,0.59468389,60750.0,60749.0,0.003]
[1728570843403,0.164625,60744.0,60743.0,0.001]
[1728570843652,0.51336389,60744.0,60743.0,0.001]
[1728570844088,0.51336389,60744.0,60727.0,0.24637217]
[1728570844089,0.329258,60743.0,60727.0,0.24637217]
[1728570844374,0.493949,60735.0,60734.0,0.24637217]
[1728570844575,0.18790125,60739.0,60728.0,0.164668]
[1728570844818,0.18790125,60739.0,60725.0,0.001634]
[1728570845260,0.164662,60731.0,60727.0,0.164671]
[1728570845491,0.164664,60730.0,60726.0,0.164672]
[1728570845942,0.329338,60728.0,60725.0,0.001634]
[1728570846164,0.164674,60726.0,60725.0,0.001634]
[1728570847177,0.35257525,60726.0,60725.0,0.001634]
[1728570847621,0.35357525,60726.0,60725.0,0.005634]
[1728570847862,0.165674,60726.0,60725.0,0.002634]
[1728570848083,0.166674,60726.0,60725.0,0.005634]
[1728570848765,0.165674,60726.0,60725.0,0.004634]
[1728570848996,0.165674,60726.0,60725.0,0.005634]
[1728570849218,0.166674,60726.0,60725.0,0.005634]
[1728570850648,0.002,60726.0,60725.0,0.17031]
[1728570850873,0.002,60726.0,60725.0,0.005634]
[1728570851335,0.166674,60726.0,60725.0,0.005634]
[1728570851559,0.002,60726.0,60725.0,0.005634]
[1728570851973,0.002,60726.0,60725.0,0.17031]
[1728570852414,0.002,60726.0,60725.0,0.33114764]
[1728570852652,0.002,60726.0,60725.0,0.17031]
[1728570857795,0.002,60726.0,60725.0,0.002998]
[1728570857796,0.61541289,60726.0,60725.0,0.002998]
[1728570858041,0.164725,60707.0,60706.0,0.24637217]
[1728570858272,0.35262625,60707.0,60706.0,0.24637217]
[1728570858530,0.264728,60706.0,60705.0,0.0161871]
[1728570858776,0.50326564,60706.0,60705.0,0.0161871]
[1728570859013,0.69616689,60706.0,60705.0,0.0161871]
[1728570860111,0.70316689,60706.0,60705.0,0.0161871]
[1728570860312,0.70516689,60706.0,60705.0,0.0161871]
[1728570860528,1.04487475,60706.0,60705.0,0.0161871]
[1728570860741,0.96423277,60706.0,60705.0,0.0161871]
[1728570862399,0.97623277,60706.0,60705.0,0.0161871]
[1728570862823,0.96423277,60706.0,60705.0,0.0161871]
[1728570863064,0.95123277,60706.0,60705.0,0.0161871]
[1728570863299,0.97923277,60706.0,60705.0,0.0161871]
[1728570863490,1.10957726,60706.0,60705.0,0.0161871]
[1728570863748,1.11222577,60706.0,60705.0,0.0161871]
[1728570863995,0.9834778,60706.0,60705.0,0.0170051]
[1728570864235,1.11862601,60706.0,60705.0,0.0170051]
[1728570864690,0.9814778,60706.0,60705.0,0.0170051]
[1728570865682,0.9954778,60706.0,60705.0,0.0170051]
[1728570865929,0.164774,60689.0,60676.0,0.0789]
[1728570866905,0.164774,60689.0,60676.0,0.32527217]
[1728570867153,0.164774,60689.0,60676.0,0.24637217]
[1728570867154,0.264774,60689.0,60676.0,0.24637217]
[1728570867397,0.164774,60689.0,60677.0,0.00148696]
[1728570867611,0.164774,60689.0,60676.0,0.24637217]
[1728570868057,0.177774,60689.0,60676.0,0.24637217]
[1728570868723,0.177774,60689.0,60672.0,0.107]
[1728570868951,0.289774,60689.0,60672.0,0.107]
[1728570869214,0.42199062,60689.0,60672.0,0.107]
[1728570869447,0.55782826,60689.0,60672.0,0.107]
[1728570869664,0.55782826,60689.0,60672.0,0.01]
[1728570869665,0.58182826,60689.0,60672.0,0.01]
[1728570869957,0.59464938,60689.0,60672.0,0.01]
[1728570870175,0.58364938,60689.0,60672.0,0.01]
[1728570870405,0.60864938,60689.0,60672.0,0.01]
[1728570872596,0.48143276,60689.0,60672.0,0.01]
[1728570873067,0.48343276,60689.0,60672.0,0.01]
[1728570873305,0.48143276,60689.0,60672.0,0.01]
[1728570873537,0.6181953,60689.0,60672.0,0.01]
[1728570873803,0.49801141,60689.0,60672.0,0.01]
[1728570874043,0.94097854,60689.0,60674.0,0.24637217]
[1728570875479,0.94297854,60689.0,60674.0,0.24637217]
[1728570876451,0.94297854,60689.0,60666.0,2.01978]
[1728570876452,0.72529452,60667.0,60666.0,0.12058975]
[1728570876689,0.72529452,60667.0,60647.0,0.20884986]
[1728570876690,0.005,60660.0,60657.0,0.24637217]
[1728570876925,0.164858,60658.0,60657.0,0.24637217]
[1728570877173,0.164858,60658.0,60647.0,0.20884986]
[1728570877174,0.164875,60652.0,60647.0,0.20884986]
[1728570877401,0.44703552,60652.0,60647.0,0.20884986]
[1728570877881,0.329725,60657.0,60647.0,0.20884986]
[1728570877882,0.329725,60657.0,60651.0,0.0787]
[1728570878099,0.164868,60655.0,60651.0,0.0787]
[1728570878317,0.85826069,60656.0,60651.0,0.0787]
[1728570878540,0.44703552,60652.0,60651.0,0.0787]
[1728570878765,0.44703552,60652.0,60651.0,0.001]
[1728570880221,0.44903552,60652.0,60651.0,0.001]
[1728570882533,0.35521992,60652.0,60651.0,0.001]
[1728570883028,0.35821992,60652.0,60651.0,0.001]
[1728570883251,0.169875,60652.0,60651.0,0.001]
[1728570883470,0.35821992,60652.0,60651.0,0.001]
[1728570884447,0.002,60652.0,60651.0,0.001]
[1728570884655,0.164875,60652.0,60651.0,0.001]
[1728570884915,0.329746,60653.0,60651.0,0.001]
[1728570885142,0.21668409,60652.0,60651.0,0.001]
[1728570885351,0.164875,60652.0,60651.0,0.001]
[1728570885820,0.18834492,60655.0,60651.0,0.001]
[1728570886279,0.003,60652.0,60651.0,0.001]
[1728570886500,0.18834492,60655.0,60651.0,0.165877]
[1728570886725,0.24637217,60662.0,60652.0,0.16083764]
[1728570886947,0.18834492,60657.0,60653.0,0.329744]
[1728570887165,0.24637217,60662.0,60655.0,0.329732]
[1728570887413,0.18834492,60658.0,60656.0,0.41730064]
[1728570887614,0.18834492,60658.0,60657.0,0.164861]
[1728570888319,0.18834492,60661.0,60660.0,0.16485]
[1728570888823,0.18834492,60661.0,60657.0,0.32569664]
[1728570889083,0.18834492,60661.0,60657.0,0.16083764]
[1728570889357,0.001,60658.0,60657.0,0.65541664]
[1728570889583,0.329671,60667.0,60657.0,0.65541664]
[1728570889584,0.164839,60665.0,60657.0,0.49055564]
[1728570889799,0.24637217,60661.0,60658.0,0.164856]
[1728570890049,0.013,60662.0,60657.0,0.16083764]
[1728570890261,0.005,60680.0,60658.0,0.329713]
[1728570890476,0.164838,60666.0,60662.0,0.164847]
[1728570890695,0.329668,60667.0,60658.0,0.49055364]
[1728570890920,0.164843,60664.0,60660.0,0.164852]
[1728570891157,0.329668,60667.0,60656.0,0.0916]
[1728570891158,0.09056952,60667.0,60656.0,0.0916]
[1728570891368,0.164846,60663.0,60657.0,0.16083764]
[1728570891588,0.24637217,60666.0,60660.0,0.002]
[1728570891802,0.16485,60661.0,60660.0,0.002]
[1728570892292,0.27190932,60661.0,60660.0,0.002]
[1728570892931,0.16485,60661.0,60660.0,0.002]
[1728570893172,0.16485,60661.0,60654.0,0.0754]
[1728570893173,0.164851,60661.0,60657.0,0.16486]
[1728570893411,0.164866,60655.0,60654.0,0.0754]
[1728570893638,0.329691,60663.0,60654.0,0.0754]
[1728570893853,0.329706,60660.0,60654.0,0.0754]
[1728570894313,0.164856,60659.0,60655.0,0.164865]
[1728570894546,0.27219984,60662.0,60654.0,0.0754]
[1728570895044,0.40610691,60667.0,60656.0,0.329727]
[1728570895299,0.40610691,60667.0,60657.0,0.329721]
[1728570895300,0.24637217,60662.0,60657.0,0.329721]
[1728570895493,0.329674,60666.0,60657.0,0.329721]
[1728570895494,0.164845,60663.0,60657.0,0.329721]
[1728570895777,0.005,60667.0,60656.0,0.16083764]
[1728570896018,0.164844,60664.0,60660.0,0.164852]
[1728570896251,0.164847,60663.0,60660.0,0.164851]
[1728570896488,0.164842,60664.0,60661.0,0.164849]
[1728570896734,0.164843,60664.0,60661.0,0.164849]
[1728570896963,0.329683,60665.0,60656.0,0.16083764]
[1728570897188,0.164843,60664.0,60657.0,0.001]
[1728570897432,0.164857,60659.0,60657.0,0.001]
[1728570897614,0.164847,60662.0,60659.0,0.164854]
[1728570897863,0.331686,60664.0,60655.0,0.32973]
[1728570897864,0.002,60664.0,60655.0,0.32973]
[1728570898085,0.164848,60662.0,60658.0,0.164857]
[1728570898306,0.165843,60664.0,60660.0,0.164851]
[1728570898521,0.329687,60664.0,60659.0,0.164855]
[1728570898710,0.164846,60663.0,60659.0,0.164855]
[1728570898950,0.164846,60663.0,60659.0,0.164854]
[1728570899166,0.164845,60663.0,60659.0,0.165853]
[1728570899383,0.164846,60663.0,60660.0,0.164853]
[1728570899569,0.164846,60663.0,60659.0,0.165854]
[1728570899570,0.164849,60662.0,60659.0,0.165854]
[1728570899817,0.164847,60663.0,60659.0,0.165854]
[1728570900037,0.0164847,60662.0,60659.0,0.001]
[1728570900267,0.331318,60665.0,60656.0,0.329725]
[1728570900550,0.164853,60661.0,60656.0,0.329725]
[1728570900774,0.494548,60662.0,60658.0,0.164857]
[1728570901017,0.494548,60662.0,60654.0,0.405136]
[1728570901018,0.164853,60660.0,60657.0,0.16486]
[1728570901255,0.329799,60662.0,60655.0,0.329729]
[1728570901475,0.16495,60662.0,60656.0,0.329724]
[1728570902103,0.0001,60662.0,60661.0,0.16485]
[1728570902106,0.0001,60662.0,60661.0,0.36065]
[1728570902113,0.001636,60665.0,60664.0,0.292842]
[1728570902304,0.24637217,60667.0,60666.0,0.292836]
[1728570902521,0.24637217,60667.0,60666.0,0.53297364]
[1728570902749,0.24637217,60675.0,60674.0,0.292815]
[1728570902998,0.24637217,60683.0,60682.0,0.169793]
[1728570903217,0.24637217,60683.0,60682.0,0.72097556]
[1728570903426,0.24637217,60683.0,60682.0,0.71897556]
[1728570903653,0.24637217,60699.0,60686.0,0.452565]
[1728570903860,0.24637217,60699.0,60689.0,0.164774]
[1728570903861,0.164751,60698.0,60689.0,0.164774]
[1728570904073,0.164751,60698.0,60687.0,0.49039564]
[1728570904074,0.16476,60695.0,60688.0,0.329553]
[1728570904276,0.16476,60695.0,60688.0,0.49039064]
[1728570904277,0.329516,60695.0,60688.0,0.49039064]
[1728570904521,0.329516,60695.0,60688.0,0.48739064]
[1728570904522,0.164764,60693.0,60688.0,0.48739064]
[1728570904760,0.329501,60698.0,60689.0,0.329547]
[1728570904953,0.164759,60695.0,60689.0,0.164772]
[1728570905187,0.329506,60697.0,60689.0,0.164773]
[1728570905392,0.001,60690.0,60689.0,0.164774]
[1728570905697,0.001,60690.0,60689.0,0.35120951]
[1728570905915,0.001,60690.0,60689.0,0.34861164]
[1728570906759,0.24637217,60699.0,60698.0,0.16475]
[1728570907179,0.24637217,60699.0,60693.0,0.164762]
[1728570907410,0.164753,60697.0,60693.0,0.164762]
[1728570907631,0.164753,60697.0,60691.0,0.329533]
[1728570907632,0.164756,60696.0,60692.0,0.164764]
[1728570907860,0.16475,60698.0,60694.0,0.164759]
[1728570908110,3.828676,60700.0,60689.0,0.16483764]
[1728570908111,0.164761,60694.0,60689.0,0.004]
[1728570908399,0.164761,60694.0,60690.0,0.164769]
[1728570908643,0.16080661,60696.0,60690.0,0.164769]
[1728570908644,0.32952,60695.0,60690.0,0.164769]
[1728570908866,0.329509,60697.0,60693.0,0.002]
[1728570909085,0.16476,60695.0,60693.0,0.002]
[1728570909310,0.16476,60694.0,60693.0,0.002]
[1728570909792,0.51775892,60714.0,60695.0,0.329512]
[1728570909793,3.499182,60700.0,60695.0,0.329512]
[1728570909996,3.499182,60700.0,60693.0,0.35118256]
[1728570909997,3.499182,60700.0,60699.0,0.164747]
[1728570910636,3.499182,60700.0,60693.0,0.16083764]
[1728570910882,3.65998861,60700.0,60694.0,0.32952]
[1728570911140,3.65998861,60700.0,60693.0,0.16083764]
[1728570911335,3.65998861,60700.0,60690.0,0.0952]
[1728570911336,3.503182,60700.0,60699.0,0.164747]
[1728570911558,3.503182,60700.0,60696.0,0.164755]
[1728570911798,0.164753,60697.0,60693.0,0.164762]
[1728570912020,3.499182,60700.0,60694.0,0.24637217]
[1728570912244,3.500818,60700.0,60699.0,0.164747]
[1728570913113,3.500818,60700.0,60699.0,0.32558464]
[1728570913114,3.502818,60700.0,60699.0,0.32558464]
[1728570913325,3.504818,60700.0,60699.0,0.40858464]
[1728570913544,3.504818,60700.0,60699.0,0.43158464]
[1728570913765,3.502818,60700.0,60699.0,0.43658464]
[1728570913990,3.504818,60700.0,60699.0,0.43658464]
[1728570914225,3.502818,60700.0,60699.0,0.43658464]
[1728570914693,3.501818,60700.0,60699.0,0.43658464]
[1728570914948,3.502818,60700.0,60699.0,0.43558464]
[1728570915145,3.502818,60700.0,60699.0,0.168747]
[1728570916288,3.501818,60700.0,60699.0,0.164747]
[1728570916505,3.500818,60700.0,60699.0,0.168747]
[1728570916714,3.502818,60700.0,60699.0,0.35258464]
[1728570917163,3.500818,60700.0,60699.0,0.34858464]
[1728570917402,3.501818,60700.0,60699.0,0.35358464]
[1728570917665,3.502818,60700.0,60699.0,0.35758464]
[1728570918805,3.502818,60700.0,60699.0,0.55678464]
[1728570919056,3.502818,60700.0,60699.0,0.55478464]
[1728570919698,3.501818,60700.0,60699.0,0.55278464]
[1728570920174,3.502818,60700.0,60699.0,0.55678464]
[1728570920400,3.45084536,60700.0,60699.0,0.63568464]
[1728570920614,2.70946316,60700.0,60699.0,0.82002956]
[1728570921036,2.71146316,60700.0,60699.0,0.82402956]
[1728570921315,2.71146316,60700.0,60699.0,0.83934436]
[1728570921562,2.71146316,60700.0,60699.0,0.64899944]
[1728570921821,2.71146316,60700.0,60699.0,0.84787618]
[1728570922031,2.71146316,60700.0,60699.0,0.66784606]
[1728570922294,2.71046316,60700.0,60699.0,0.1800618]
[1728570922489,2.71046316,60700.0,60699.0,0.164747]
[1728570922706,2.71146316,60700.0,60699.0,0.178747]
[1728570923135,2.71046316,60700.0,60699.0,0.178747]
[1728570923354,2.71046316,60700.0,60699.0,0.52092956]
[1728570923578,2.71046316,60700.0,60699.0,0.53092956]
[1728570923819,2.71046316,60700.0,60699.0,0.52392956]
[1728570924076,2.71146316,60700.0,60699.0,0.52092956]
[1728570924288,2.71046316,60700.0,60699.0,0.54392956]
[1728570924503,2.71046316,60700.0,60699.0,0.53692956]
[1728570924504,2.70946316,60700.0,60699.0,0.53692956]
[1728570924710,2.70946316,60700.0,60699.0,0.35558464]
[1728570924711,2.71046316,60700.0,60699.0,0.35558464]
[1728570925389,2.71146316,60700.0,60699.0,0.181747]
[1728570925834,2.71046316,60700.0,60699.0,0.171747]
[1728570926259,2.71146316,60700.0,60699.0,0.182747]
[1728570928733,2.71146316,60700.0,60699.0,0.19811405]
[1728570928954,2.71146316,60700.0,60699.0,0.182747]
[1728570929653,2.71146316,60700.0,60699.0,0.018]
[1728570929654,2.87620716,60700.0,60699.0,0.018]
[1728570930313,2.99425086,60700.0,60699.0,0.018]
[1728570930757,2.87620716,60700.0,60699.0,0.018]
[1728570930989,2.87520716,60700.0,60699.0,0.011]
[1728570931440,2.87620716,60700.0,60699.0,0.018]
[1728570931658,2.87620716,60700.0,60699.0,0.007]
[1728570931659,2.87520716,60700.0,60699.0,0.007]
[1728570931915,2.87520716,60700.0,60699.0,0.164747]
[1728570931916,2.70946316,60700.0,60699.0,0.164747]
[1728570932135,2.71046316,60700.0,60699.0,0.171747]
[1728570932588,2.71046316,60700.0,60699.0,0.17800112]
[1728570932836,2.70946316,60700.0,60699.0,0.00625412]
[1728570933276,2.70946316,60700.0,60699.0,0.164747]
[1728570933689,2.70946316,60700.0,60699.0,0.17099618]
[1728570933912,2.70946316,60700.0,60699.0,0.35483382]
[1728570934138,2.70946316,60700.0,60699.0,0.43133382]
[1728570935243,2.70946316,60700.0,60699.0,0.35483382]
[1728570936345,2.71046316,60700.0,60699.0,0.36183382]
[1728570937212,2.71146316,60700.0,60699.0,0.36783382]
[1728570943482,2.71146316,60700.0,60699.0,0.18399618]
[1728570945032,2.71146316,60700.0,60699.0,0.01924918]
[1728570945520,2.71146316,60700.0,60699.0,0.177747]
[1728570945722,2.71146316,60700.0,60699.0,0.013]
[1728570945927,2.71146316,60700.0,60699.0,0.18398863]
[1728570947327,2.71146316,60700.0,60699.0,0.36782627]
[1728570950439,2.71146316,60700.0,60699.0,0.36864427]
[1728570962001,2.71146316,60700.0,60699.0,0.18480663]
[1728570962464,2.71146316,60700.0,60699.0,0.36864427]
[1728570964144,2.71146316,60700.0,60699.0,0.18480663]
[1728570964635,2.71146316,60700.0,60699.0,0.02005963]
[1728570964849,3.03701377,60700.0,60699.0,0.02005963]
[1728570965307,3.03701377,60700.0,60699.0,0.013818]
[1728570965568,3.13871377,60700.0,60699.0,0.013818]
[1728570965793,0.164774,60689.0,60688.0,0.000818]
[1728570966079,0.57835744,60689.0,60688.0,0.000818]
[1728570966316,0.52892724,60689.0,60688.0,0.00966222]
[1728570966549,0.52892724,60689.0,60688.0,0.000818]
[1728570967227,0.52892724,60689.0,60688.0,0.002818]
[1728570967670,0.53292724,60689.0,60688.0,0.002818]
[1728570968115,0.344974,60689.0,60688.0,0.002818]
[1728570968336,0.168774,60689.0,60688.0,0.000818]
[1728570968844,0.008,60689.0,60688.0,0.00968933]
[1728570969106,0.172774,60689.0,60688.0,0.000818]
[1728570969322,0.172774,60689.0,60688.0,0.00968933]
[1728570969566,0.172774,60689.0,60688.0,0.000818]
[1728570969821,0.29939114,60689.0,60688.0,0.000818]
[1728570970314,0.74182878,60689.0,60688.0,0.000818]
[1728570970556,0.76764898,60689.0,60688.0,0.000818]
[1728570970812,0.76964898,60689.0,60688.0,0.000818]
[1728570971056,0.76974898,60689.0,60688.0,0.000818]
[1728570971297,0.76774898,60689.0,60688.0,0.000818]
[1728570971536,0.76374898,60689.0,60688.0,0.000818]
[1728570971776,0.82484747,60689.0,60688.0,0.000818]
[1728570972011,0.82084747,60689.0,60688.0,0.000818]
[1728570972270,0.78274898,60689.0,60688.0,0.000818]
[1728570972539,0.78474898,60689.0,60688.0,0.000818]
[1728570972789,0.26785324,60677.0,60669.0,0.24637217]
[1728570973033,0.35277924,60670.0,60669.0,0.24637217]
[1728570973293,0.35277924,60670.0,60657.0,0.16486]
[1728570973294,0.164847,60662.0,60657.0,0.16486]
[1728570973531,0.164847,60662.0,60656.0,0.000818]
[1728570973769,0.02582644,60671.0,60656.0,0.000818]
[1728570973770,0.164843,60664.0,60656.0,0.000818]
[1728570974019,0.02582644,60671.0,60659.0,0.164855]
[1728570974020,0.164847,60663.0,60659.0,0.164855]
[1728570974272,0.164861,60657.0,60656.0,0.000818]
[1728570974513,0.35281424,60657.0,60656.0,0.000818]
[1728570974746,0.164861,60657.0,60656.0,0.000818]
[1728570974979,0.2883785,60657.0,60656.0,0.000818]
[1728570975229,0.35281424,60657.0,60656.0,0.000818]
[1728570975733,0.164861,60657.0,60656.0,0.000818]
[1728570976201,0.165861,60657.0,60656.0,0.000818]
[1728570976446,0.001,60657.0,60656.0,0.000818]
[1728570976928,0.18995324,60657.0,60656.0,0.000818]
[1728570977154,0.35481424,60657.0,60656.0,0.000818]
[1728570977645,0.44936413,60657.0,60656.0,0.000818]
[1728570977894,0.166861,60657.0,60656.0,0.000818]
[1728570978166,0.165861,60657.0,60656.0,0.000818]
[1728570978423,0.2523894,60657.0,60656.0,0.000818]
[1728570978733,0.53489253,60657.0,60656.0,0.000818]
[1728570978901,0.53189253,60657.0,60656.0,0.000818]
[1728570979391,0.44936413,60657.0,60656.0,0.000818]
[1728570979640,0.329717,60659.0,60656.0,0.000818]
[1728570979886,0.005,60657.0,60656.0,0.000818]
[1728570980137,0.174861,60657.0,60656.0,0.000818]
[1728570980628,0.169861,60657.0,60656.0,0.000818]
[1728570980874,0.171861,60657.0,60656.0,0.000818]
[1728570981614,0.61020177,60657.0,60656.0,0.000818]
[1728570981880,0.61220177,60657.0,60656.0,0.000818]
[1728570982127,0.45136413,60657.0,60656.0,0.000818]
[1728570982364,0.44936413,60657.0,60656.0,0.000818]
[1728570982629,0.61020177,60657.0,60656.0,0.000818]
[1728570982872,0.77600838,60657.0,60656.0,0.000818]
[1728570983359,0.76900838,60657.0,60656.0,0.000818]
[1728570983596,0.95810838,60657.0,60656.0,0.000818]
[1728570984352,0.95610838,60657.0,60656.0,0.000818]
[1728570984585,0.95810838,60657.0,60656.0,0.000818]
[1728570985343,0.97210838,60657.0,60656.0,0.000818]
[1728570985613,0.96710838,60657.0,60656.0,0.000818]
[1728570986100,0.98110838,60657.0,60656.0,0.000818]
[1728570987075,0.96710838,60657.0,60656.0,0.000818]
[1728570987321,0.98110838,60657.0,60656.0,0.000818]
[1728570988742,1.00494374,60657.0,60656.0,0.000818]
[1728570989475,1.00694374,60657.0,60656.0,0.000818]
[1728570989948,1.00494374,60657.0,60656.0,0.000818]
[1728570990183,0.84413713,60657.0,60656.0,0.000818]
[1728570990421,0.84613713,60657.0,60656.0,0.000818]
[1728570991400,0.350885,60648.0,60647.0,0.20363286]
[1728570991633,0.66926267,60648.0,60647.0,0.20363286]
[1728570991899,0.76376267,60648.0,60647.0,0.20363286]
[1728570992137,0.79160166,60648.0,60647.0,0.20363286]
[1728570992413,0.79160166,60648.0,60631.0,0.24637217]
[1728570992414,0.329845,60635.0,60631.0,0.24637217]
[1728570992651,0.329845,60635.0,60624.0,0.23730122]
[1728570992652,0.72995426,60625.0,60624.0,0.23730122]
[1728570992896,0.72995426,60625.0,60621.0,0.0002]
[1728570992897,0.164956,60622.0,60621.0,0.0002]
[1728570993407,0.269956,60622.0,60621.0,0.0002]
[1728570993706,0.269956,60622.0,60585.0,0.04476525]
[1728570993707,0.0183,60605.0,60585.0,0.04476525]
[1728570993933,0.0183,60605.0,60588.0,0.24637217]
[1728570993934,0.270041,60591.0,60588.0,0.24637217]
[1728570994164,0.270041,60591.0,60586.0,0.000818]
[1728570994165,0.55254413,60591.0,60586.0,0.000818]
[1728570994394,0.70681904,60591.0,60586.0,0.000818]
[1728570994648,0.54754413,60591.0,60586.0,0.000818]
[1728570994902,0.7342444,60591.0,60586.0,0.000818]
[1728570995132,0.19090363,60591.0,60586.0,0.000818]
[1728570995376,0.165049,60588.0,60587.0,0.21079256]
[1728570996253,0.165049,60588.0,60587.0,0.20084256]
[1728570996516,0.61258913,60591.0,60587.0,0.20084256]
[1728570996517,0.28850313,60591.0,60587.0,0.20084256]
[1728570996767,0.02,60591.0,60588.0,0.0823]
[1728570996995,0.02,60591.0,60590.0,0.165043]
[1728570996996,0.006,60591.0,60590.0,0.165043]
[1728570997230,0.006,60591.0,60590.0,0.32588064]
[1728570997468,0.57640117,60601.0,60593.0,0.330068]
[1728570997708,0.24637217,60601.0,60599.0,0.165017]
[1728570997977,0.165352,60612.0,60604.0,0.330007]
[1728570998235,0.49532,60612.0,60598.0,0.430138]
[1728570998466,0.164998,60607.0,60602.0,0.330019]
[1728570998699,0.329986,60609.0,60604.0,0.165004]
[1728570998938,0.13216816,60607.0,60598.0,0.1001]
[1728570999187,0.24637217,60607.0,60605.0,0.165]
[1728570999658,0.24637217,60607.0,60603.0,0.330013]
[1728570999659,0.329958,60614.0,60606.0,0.00897677]
[1728570999897,0.41136217,60610.0,60606.0,0.17397577]
[1728571000149,0.32996,60614.0,60606.0,0.329996]
[1728571000150,0.164985,60612.0,60606.0,0.329996]
[1728571000391,0.329968,60612.0,60607.0,0.00897102]
[1728571000612,0.22795677,60612.0,60608.0,0.164993]
[1728571000861,0.164989,60610.0,60604.0,0.330011]
[1728571001083,0.27959703,60611.0,60606.0,0.002]
[1728571001318,0.11201195,60609.0,60608.0,0.164994]
[1728571001537,0.11201195,60609.0,60606.0,0.002]
[1728571001538,0.34399672,60609.0,60607.0,0.00897102]
[1728571001757,0.09859832,60608.0,60606.0,0.331999]
[1728571001972,0.09859832,60608.0,60606.0,0.002]
[1728571002227,0.164997,60607.0,60606.0,0.002]
[1728571002442,0.165001,60606.0,60599.0,0.66007]
[1728571002695,0.329999,60607.0,60599.0,0.330034]
[1728571002923,0.165,60606.0,60602.0,0.16501]
[1728571003148,0.11699425,60606.0,60596.0,0.330051]
[1728571003369,0.10225677,60605.0,60596.0,0.330051]
[1728571003803,0.10225677,60605.0,60604.0,0.165005]
[1728571004035,0.10225677,60605.0,60603.0,0.165006]
[1728571004250,0.10225677,60605.0,60600.0,0.33003]
[1728571004469,0.10225677,60605.0,60599.0,0.330037]
[1728571004697,0.10225677,60605.0,60602.0,0.16501]
[1728571004914,0.10325677,60605.0,60599.0,0.330037]
[1728571005137,0.1015952,60604.0,60603.0,0.165007]
[1728571005574,0.1015952,60604.0,60603.0,0.165008]
[1728571006255,0.001,60605.0,60603.0,0.165008]
[1728571006479,0.10090994,60604.0,60603.0,0.165007]
[1728571006694,0.10090994,60604.0,60600.0,0.330031]
[1728571006914,0.10090994,60604.0,60603.0,0.165008]
[1728571007380,0.10090994,60604.0,60600.0,0.330031]
[1728571007381,0.10190994,60604.0,60602.0,0.165008]
[1728571007588,0.10090994,60604.0,60603.0,0.001]
[1728571007837,0.10090994,60604.0,60602.0,0.165011]
[1728571007838,0.09960126,60603.0,60602.0,0.165011]
[1728571009520,0.15916069,60603.0,60602.0,0.0080808]
[1728571009725,0.09960126,60603.0,60602.0,0.0080808]
[1728571009942,0.09960126,60603.0,60602.0,0.165011]
[1728571010158,0.09960126,60603.0,60602.0,0.1730918]
[1728571010604,0.10060126,60603.0,60602.0,0.1730918]
[1728571011046,0.002,60603.0,60602.0,0.1730918]
[1728571011474,0.001,60603.0,60602.0,0.1730918]
[1728571011696,0.002,60603.0,60602.0,0.1730918]
[1728571012132,0.02683722,60603.0,60602.0,0.1730918]
[1728571012371,0.002,60603.0,60602.0,0.1730918]
[1728571013924,0.10245821,60603.0,60602.0,0.1730918]
[1728571014151,0.002,60603.0,60602.0,0.1730918]
[1728571014787,0.002,60603.0,60602.0,0.165011]
[1728571015012,0.10263493,60603.0,60602.0,0.165011]
[1728571015242,0.10263493,60603.0,60602.0,0.17583358]
[1728571016065,0.002,60603.0,60602.0,0.82455274]
[1728571016306,0.24637217,60631.0,60605.0,0.002]
[1728571016307,0.24637217,60608.0,60605.0,0.002]
[1728571016565,0.24637217,60608.0,60607.0,0.35357852]
[1728571016807,0.24637217,60608.0,60607.0,0.51441616]
[1728571017024,0.329918,60622.0,60616.0,0.164972]
[1728571017268,0.164959,60621.0,60616.0,0.164972]
[1728571017491,0.329918,60622.0,60616.0,0.164972]
[1728571017705,0.164965,60619.0,60616.0,0.164972]
[1728571017936,0.24637217,60624.0,60616.0,0.329945]
[1728571018202,0.164957,60622.0,60619.0,0.164964]
[1728571018429,0.58503257,60622.0,60604.0,0.18858152]
[1728571018669,0.329878,60629.0,60620.0,0.329921]
[1728571018892,0.24637217,60622.0,60621.0,0.164959]
[1728571019106,0.09224709,60628.0,60619.0,0.164962]
[1728571019327,0.164951,60624.0,60619.0,0.329928]
[1728571019551,0.32989,60627.0,60621.0,0.164957]
[1728571019764,0.003,60624.0,60621.0,0.164959]
[1728571019980,0.167952,60624.0,60611.0,0.0753]
[1728571020218,0.329889,60627.0,60620.0,0.329923]
[1728571020465,0.329889,60627.0,60611.0,0.0753]
[1728571020466,0.164972,60617.0,60614.0,0.164977]
[1728571020676,0.164964,60619.0,60616.0,0.164972]